fUST/lending_fUST_20251129
["ID","MTS","AMOUNT","RATE_DAILY","PERIOD"]
[395034008,1764354645313,-626.96,0.00016712,2]
[395034009,1764354645323,-532.38387587,0.00016712,2]
[395034010,1764354645334,-500.0,0.00016712,2]
[395034011,1764354645343,-500.0,0.00016712,2]
[395034012,1764354645354,-500.0,0.00016712,2]
[395034013,1764354645363,-500.0,0.00016712,2]
[395034014,1764354645372,-581.1380433,0.00016712,2]
[395034015,1764354645382,-500.0,0.00016712,2]
[395034016,1764354645391,-500.0,0.00016712,2]
[395034017,1764354645401,-500.0,0.00016712,2]
[395034018,1764354645411,-717.93,0.00016712,2]
[395034019,1764354645422,-506.43,0.00016712,2]
[395034020,1764354645431,-500.0,0.00016712,2]
[395034021,1764354645441,-500.0,0.00016712,2]
[395034022,1764354645450,-636.52,0.00016712,2]
[395034023,1764354645460,-500.0,0.00016712,2]
[395034024,1764354645469,-500.0,0.00016712,2]
[395034025,1764354645479,-500.0,0.00016712,2]
[395034026,1764354645488,-500.0,0.00016712,2]
[395034027,1764354645498,-824.13,0.00016712,2]
[395034028,1764354645507,-556.15,0.00016712,2]
[395034029,1764354645516,-500.0,0.00016712,2]
[395034030,1764354645526,-500.0,0.00016712,2]
[395034031,1764354645535,-500.0,0.00016712,2]
[395034032,1764354645544,-500.0,0.00016712,2]
[395034033,1764354645554,-1006.75,0.00016712,2]
[395034034,1764354645563,-500.0,0.00016712,2]
[395034035,1764354645572,-500.0,0.00016712,2]
[395034036,1764354645582,-615.25,0.00016712,2]
[395034037,1764354645591,-500.0,0.00016712,2]
[395034038,1764354645601,-831.15,0.00016712,2]
[395034039,1764354645610,-500.0,0.00016712,2]
[395034040,1764354645620,-500.0,0.00016712,2]
[395034041,1764354645630,-500.0,0.00016712,2]
[395034042,1764354645640,-500.0,0.00016712,2]
[395034043,1764354645649,-500.0,0.00016712,2]
[395034044,1764354645658,-561.69,0.00016712,2]
[395034045,1764354645667,-500.0,0.00016712,2]
[395034046,1764354645676,-500.0,0.00016712,2]
[395034047,1764354645685,-2440.16,0.00016712,2]
[395034049,1764354645695,-500.0,0.00016712,2]
[395034050,1764354645704,-500.0,0.00016712,2]
[395034051,1764354645714,-500.0,0.00016712,2]
[395034052,1764354645723,-500.0,0.00016712,2]
[395034053,1764354645732,-1000.0,0.00016712,2]
[395034054,1764354645741,-960.17,0.00016712,2]
[395034055,1764354645751,-500.0,0.00016712,2]
[395034056,1764354645760,-500.0,0.00016712,2]
[395034057,1764354645770,-523.23,0.00016712,2]
[395034058,1764354645779,-500.0,0.00016712,2]
[395034060,1764354645789,-500.0,0.00016712,2]
[395034061,1764354645799,-500.0,0.00016712,2]
[395034062,1764354645809,-500.0,0.00016712,2]
[395034063,1764354645818,-1144.27,0.00016712,2]
[395034064,1764354645828,-500.0,0.00016712,2]
[395034065,1764354645839,-715.01,0.00016712,2]
[395034066,1764354645849,-500.0,0.00016712,2]
[395034067,1764354645859,-500.0,0.00016712,2]
[395034068,1764354645869,-333.69799455,0.00016712,2]
[395034069,1764354645879,-426.09210452,0.00016712,2]
[395034070,1764354645888,-1334.56,0.00016712,2]
[395034071,1764354645898,-500.0,0.00016712,2]
[395034072,1764354645907,-500.0,0.00016712,2]
[395034074,1764354645917,-1100.33,0.00016712,2]
[395034075,1764354645926,-500.0,0.00016712,2]
[395034076,1764354645936,-500.0,0.00016712,2]
[395034077,1764354645945,-500.0,0.00016712,2]
[395034078,1764354645954,-711.2,0.00016712,2]
[395034079,1764354645964,-500.0,0.00016712,2]
[395034080,1764354645974,-842.59,0.00016712,2]
[395034081,1764354645984,-500.0,0.00016712,2]
[395034082,1764354645994,-500.0,0.00016712,2]
[395034083,1764354646003,-500.0,0.00016712,2]
[395034084,1764354646014,-689.92,0.00016712,2]
[395034085,1764354646024,-500.0,0.00016712,2]
[395034086,1764354646033,-1447.98,0.00016712,2]
[395034087,1764354646043,-549.26,0.00016712,2]
[395034088,1764354646053,-809.83,0.00016712,2]
[395034089,1764354646063,-500.0,0.00016712,2]
[395034090,1764354646073,-500.0,0.00016712,2]
[395034091,1764354646082,-583.31,0.00016712,2]
[395034092,1764354646092,-500.0,0.00016712,2]
[395034093,1764354646107,-789.63,0.00016712,2]
[395034094,1764354646118,-827.52,0.00016712,2]
[395034095,1764354646128,-544.7,0.00016712,2]
[395034096,1764354646138,-935.61,0.00016712,2]
[395034097,1764354646147,-500.0,0.00016712,2]
[395034098,1764354646157,-500.0,0.00016712,2]
[395034099,1764354646166,-500.0,0.00016712,2]
[395034100,1764354646176,-882.22,0.00016712,2]
[395034101,1764354646187,-764.45,0.00016712,2]
[395034102,1764354646196,-1087.57,0.00016712,2]
[395034103,1764354646206,-160.90823118,0.00016712,2]
[395034104,1764354646216,-500.0,0.00016712,2]
[395034105,1764354646226,-490.16232904,0.00016712,2]
[395034106,1764354646236,-566.57687835,0.00016712,2]
[395034107,1764354646246,-821.27,0.00016712,2]
[395034108,1764354646256,-500.0,0.00016712,2]
[395034109,1764354646266,-500.0,0.00016712,2]
[395034110,1764354646275,-500.0,0.00016712,2]
[395034111,1764354646286,-500.0,0.00016712,2]
[395034112,1764354646296,-500.0,0.00016712,2]
[395034113,1764354646306,-500.0,0.00016712,2]
[395034114,1764354646316,-713.0,0.00016712,2]
[395034115,1764354646326,-666.89,0.00016712,2]
[395034116,1764354646336,-1343.92,0.00016712,2]
[395034117,1764354646346,-893.7,0.00016712,2]
[395034118,1764354646358,-500.0,0.00016712,2]
[395034119,1764354646369,-725.41,0.00016712,2]
[395034120,1764354646380,-500.0,0.00016712,2]
[395034121,1764354646389,-500.0,0.00016712,2]
[395034122,1764354646400,-943.53,0.00016712,2]
[395034123,1764354646410,-500.0,0.00016712,2]
[395034124,1764354646419,-500.0,0.00016712,2]
[395034125,1764354646429,-348.80605947,0.00016712,2]
[395034126,1764354646439,-500.0,0.00016712,2]
[395034127,1764354646450,-1422.6,0.00016712,2]
[395034128,1764354646460,-500.0,0.00016712,2]
[395034129,1764354646470,-681.78,0.00016712,2]
[395034130,1764354646479,-500.0,0.00016712,2]
[395034131,1764354646489,-500.0,0.00016712,2]
[395034132,1764354646498,-500.0,0.00016712,2]
[395034133,1764354646507,-500.0,0.00016712,2]
[395034134,1764354646516,-500.0,0.00016712,2]
[395034135,1764354646524,-500.0,0.00016712,2]
[395034136,1764354646534,-442.0945647,0.00016712,2]
[395034137,1764354646543,-612.92,0.00016712,2]
[395034138,1764354646551,-500.0,0.00016712,2]
[395034139,1764354646560,-620.08,0.00016712,2]
[395034140,1764354646569,-500.0,0.00016712,2]
[395034141,1764354646578,-500.0,0.00016712,2]
[395034142,1764354646587,-615.84,0.00016712,2]
[395034143,1764354646596,-500.0,0.00016712,2]
[395034144,1764354646606,-500.0,0.00016712,2]
[395034145,1764354646615,-3688.05,0.00016712,2]
[395034146,1764354646624,-516.67,0.00016712,2]
[395034147,1764354646633,-500.0,0.00016712,2]
[395034148,1764354646642,-500.0,0.00016712,2]
[395034149,1764354646651,-1525.65,0.00016712,2]
[395034150,1764354646659,-500.0,0.00016712,2]
[395034151,1764354646668,-842.04,0.00016712,2]
[395034152,1764354646677,-500.0,0.00016712,2]
[395034153,1764354646686,-500.0,0.00016712,2]
[395034154,1764354646695,-500.0,0.00016712,2]
[395034155,1764354646704,-500.0,0.00016712,2]
[395034156,1764354646713,-500.0,0.00016712,2]
[395034157,1764354646723,-2676.86,0.00016712,2]
[395034158,1764354646732,-500.0,0.00016712,2]
[395034159,1764354646741,-551.0926329,0.00016712,2]
[395034160,1764354646750,-500.0,0.00016712,2]
[395034161,1764354646759,-500.0,0.00016712,2]
[395034162,1764354646769,-500.0,0.00016712,2]
[395034163,1764354646778,-500.0,0.00016712,2]
[395034164,1764354646787,-604.17,0.00016712,2]
[395034165,1764354646797,-958.48,0.00016712,2]
[395034166,1764354646806,-500.0,0.00016712,2]
[395034167,1764354646815,-525.5,0.00016712,2]
[395034168,1764354646824,-1073.57,0.00016712,2]
[395034169,1764354646833,-1664.16,0.00016712,2]
[395034170,1764354646842,-500.0,0.00016712,2]
[395034171,1764354646850,-500.0,0.00016712,2]
[395034172,1764354646859,-2069.65,0.00016712,2]
[395034173,1764354646868,-500.0,0.00016712,2]
[395034174,1764354646877,-500.0,0.00016712,2]
[395034175,1764354646886,-500.0,0.00016712,2]
[395034176,1764354646895,-538.51,0.00016712,2]
[395034177,1764354646904,-500.0,0.00016712,2]
[395034178,1764354646912,-500.0,0.00016712,2]
[395034179,1764354646922,-469.38483801,0.00016712,2]
[395034180,1764354646930,-500.0,0.00016712,2]
[395034181,1764354646939,-1505.35,0.00016712,2]
[395034182,1764354646948,-702.15,0.00016712,2]
[395034183,1764354646957,-500.0,0.00016712,2]
[395034184,1764354646965,-500.0,0.00016712,2]
[395034185,1764354646974,-959.0,0.00016712,2]
[395034186,1764354646984,-898.0,0.00016712,2]
[395034187,1764354646993,-605.58,0.00016712,2]
[395034188,1764354647002,-765.55,0.00016712,2]
[395034189,1764354647011,-500.0,0.00016712,2]
[395034190,1764354647020,-500.0,0.00016712,2]
[395034191,1764354647029,-579.77,0.00016712,2]
[395034192,1764354647038,-500.0,0.00016712,2]
[395034193,1764354647047,-500.0,0.00016712,2]
[395034194,1764354647056,-2286.84,0.00016712,2]
[395034195,1764354647065,-500.0,0.00016712,2]
[395034196,1764354647074,-602.09999353,0.00016712,2]
[395034197,1764354647083,-500.0,0.00016712,2]
[395034198,1764354647092,-500.0,0.00016712,2]
[395034199,1764354647100,-630.19,0.00016712,2]
[395034200,1764354647112,-500.0,0.00016712,2]
[395034201,1764354647123,-734.88,0.00016712,2]
[395034202,1764354647133,-500.0,0.00016712,2]
[395034203,1764354647142,-500.0,0.00016712,2]
[395034204,1764354647151,-690.38,0.00016712,2]
[395034205,1764354647162,-500.0,0.00016712,2]
[395034206,1764354647171,-500.0,0.00016712,2]
[395034207,1764354647180,-665.26,0.00016712,2]
[395034208,1764354647188,-500.0,0.00016712,2]
[395034209,1764354647197,-1776.88,0.00016712,2]
[395034210,1764354647206,-1086.77,0.00016712,2]
[395034211,1764354647215,-500.0,0.00016712,2]
[395034212,1764354647224,-825.09,0.00016712,2]
[395034213,1764354647233,-500.0,0.00016712,2]
[395034214,1764354647241,-500.0,0.00016712,2]
[395034215,1764354647250,-500.0,0.00016712,2]
[395034216,1764354647259,-724.95,0.00016712,2]
[395034217,1764354647268,-500.0,0.00016712,2]
[395034218,1764354647277,-500.0,0.00016712,2]
[395034219,1764354647286,-615.03,0.00016712,2]
[395034220,1764354647295,-609.4,0.00016712,2]
[395034221,1764354647304,-421.76338372,0.00016712,2]
[395034222,1764354647314,-792.42,0.00016712,2]
[395034223,1764354647323,-500.0,0.00016712,2]
[395034224,1764354647332,-500.0,0.00016712,2]
[395034225,1764354647341,-500.0,0.00016712,2]
[395034226,1764354647350,-500.0,0.00016712,2]
[395034227,1764354647631,-500.0,0.00016712,2]
[395034228,1764354647644,-1627.12,0.00016712,2]
[395034229,1764354647654,-500.0,0.00016712,2]
[395034230,1764354647663,-500.0,0.00016712,2]
[395034231,1764354647672,-570.08,0.00016712,2]
[395034232,1764354647681,-500.0,0.00016712,2]
[395034233,1764354647690,-500.0,0.00016712,2]
[395034234,1764354647699,-864.44,0.00016712,2]
[395034235,1764354647708,-500.0,0.00016712,2]
[395034236,1764354647717,-500.0,0.00016712,2]
[395034237,1764354647727,-1060.27,0.00016712,2]
[395034238,1764354647736,-500.0,0.00016712,2]
[395034239,1764354647745,-1208.4,0.00016712,2]
[395034240,1764354647755,-500.0,0.00016712,2]
[395034241,1764354647764,-500.0,0.00016712,2]
[395034242,1764354647773,-681.25,0.00016712,2]
[395034243,1764354647782,-500.0,0.00016712,2]
[395034244,1764354647792,-151.0,0.00016712,2]
[395034245,1764354647801,-500.0,0.00016712,2]
[395034246,1764354647811,-1026.72,0.00016712,2]
[395034247,1764354647820,-500.0,0.00016712,2]
[395034248,1764354647829,-500.0,0.00016712,2]
[395034249,1764354647841,-2860.71,0.00016712,2]
[395034250,1764354647850,-500.0,0.00016712,2]
[395034251,1764354647861,-1302.95,0.00016712,2]
[395034252,1764354647870,-500.0,0.00016712,2]
[395034253,1764354647879,-500.0,0.00016712,2]
[395034254,1764354647890,-500.0,0.00016712,2]
[395034255,1764354647899,-529.15,0.00016712,2]
[395034256,1764354647908,-819.62,0.00016712,2]
[395034257,1764354647918,-1122.35,0.00016712,2]
[395034258,1764354647927,-1208.95,0.00016712,2]
[395034259,1764354647936,-850.72,0.00016712,2]
[395034260,1764354647947,-500.0,0.00016712,2]
[395034261,1764354647956,-553.86645271,0.00016712,2]
[395034262,1764354647965,-3546.16,0.00016712,2]
[395034263,1764354647974,-305.59691174,0.00016712,2]
[395034264,1764354647984,-1762.25,0.00016712,2]
[395034265,1764354647993,-500.0,0.00016712,2]
[395034266,1764354648002,-1936.11,0.00016712,2]
[395034267,1764354648012,-500.0,0.00016712,2]
[395034268,1764354648021,-895.94,0.00016712,2]
[395034269,1764354648030,-500.0,0.00016712,2]
[395034270,1764354648040,-500.0,0.00016712,2]
[395034271,1764354648049,-3288.94,0.00016712,2]
[395034272,1764354648059,-500.0,0.00016712,2]
[395034273,1764354648068,-500.0,0.00016712,2]
[395034274,1764354648077,-500.0,0.00016712,2]
[395034275,1764354648086,-891.61,0.00016712,2]
[395034276,1764354648095,-588.48,0.00016712,2]
[395034277,1764354648107,-500.0,0.00016712,2]
[395034278,1764354648117,-500.0,0.00016712,2]
[395034279,1764354648126,-3355.61,0.00016712,2]
[395034280,1764354648136,-1610.2,0.00016712,2]
[395034281,1764354648147,-500.0,0.00016712,2]
[395034282,1764354648157,-500.0,0.00016712,2]
[395034283,1764354648166,-500.0,0.00016712,2]
[395034284,1764354648175,-1490.7,0.00016712,2]
[395034285,1764354648186,-848.72,0.00016712,2]
[395034286,1764354648195,-1981.0,0.00016712,2]
[395034287,1764354648206,-1174.73,0.00016712,2]
[395034288,1764354648215,-500.0,0.00016712,2]
[395034289,1764354648224,-812.35,0.00016712,2]
[395034290,1764354648233,-1136.98,0.00016712,2]
[395034291,1764354648243,-500.0,0.00016712,2]
[395034292,1764354648252,-500.0,0.00016712,2]
[395034293,1764354648261,-500.0,0.00016712,2]
[395034294,1764354648271,-500.0,0.00016712,2]
[395034295,1764354648280,-885.34,0.00016712,2]
[395034296,1764354648289,-1731.97,0.00016712,2]
[395034297,1764354648299,-4155.03,0.00016712,2]
[395034298,1764354648308,-1311.27,0.00016712,2]
[395034299,1764354648317,-500.0,0.00016712,2]
[395034300,1764354648327,-1498.08,0.00016712,2]
[395034301,1764354648336,-500.0,0.00016712,2]
[395034302,1764354648346,-500.0,0.00016712,2]
[395034303,1764354648355,-500.0,0.00016712,2]
[395034304,1764354648365,-2737.24,0.00016712,2]
[395034305,1764354648374,-500.0,0.00016712,2]
[395034306,1764354648383,-500.0,0.00016712,2]
[395034307,1764354648392,-925.12,0.00016712,2]
[395034308,1764354648402,-500.0,0.00016712,2]
[395034309,1764354648411,-1367.81,0.00016712,2]
[395034310,1764354648420,-716.8,0.00016712,2]
[395034312,1764354648429,-686.09,0.00016712,2]
[395034314,1764354648439,-583.79,0.00016712,2]
[395034316,1764354648448,-500.0,0.00016712,2]
[395034318,1764354648457,-500.0,0.00016712,2]
[395034319,1764354648466,-886.67,0.00016712,2]
[395034320,1764354648475,-636.66,0.00016712,2]
[395034321,1764354648484,-1134.1,0.00016712,2]
[395034323,1764354648494,-5256.33,0.00016712,2]
[395034325,1764354648503,-589.56,0.00016712,2]
[395034327,1764354648512,-500.0,0.00016712,2]
[395034329,1764354648521,-500.0,0.00016712,2]
[395034331,1764354648530,-1953.06,0.00016712,2]
[395034333,1764354648540,-4928.8,0.00016712,2]
[395034335,1764354648549,-4512.92,0.00016712,2]
[395034337,1764354648558,-662.3,0.00016712,2]
[395034339,1764354648568,-612.08,0.00016712,2]
[395034341,1764354648577,-500.0,0.00016712,2]
[395034343,1764354648586,-619.21,0.00016712,2]
[395034345,1764354648595,-592.70954447,0.00016712,2]
[395034347,1764354648605,-580.16,0.00016712,2]
[395034349,1764354648614,-816.57,0.00016712,2]
[395034351,1764354648623,-828.24,0.00016712,2]
[395034352,1764354648632,-500.0,0.00016712,2]
[395034353,1764354648641,-18083.1,0.00016712,2]
[395034354,1764354648650,-731.76,0.00016712,2]
[395034355,1764354648659,-609.86,0.00016712,2]
[395034356,1764354648669,-1088.22,0.00016712,2]
[395034357,1764354648678,-500.0,0.00016712,2]
[395034358,1764354648687,-500.0,0.00016712,2]
[395034359,1764354648697,-1231.39,0.00016712,2]
[395034360,1764354648706,-1756.41,0.00016712,2]
[395034361,1764354648715,-500.0,0.00016712,2]
[395034362,1764354648724,-500.0,0.00016712,2]
[395034363,1764354648734,-500.0,0.00016712,2]
[395034364,1764354648743,-1203.68,0.00016712,2]
[395034365,1764354648753,-991.56,0.00016712,2]
[395034366,1764354648763,-792.41,0.00016712,2]
[395034367,1764354648773,-500.0,0.00016712,2]
[395034368,1764354648782,-500.0,0.00016712,2]
[395034369,1764354648792,-3027.29,0.00016712,2]
[395034370,1764354648801,-9143.25,0.00016712,2]
[395034371,1764354648810,-500.0,0.00016712,2]
[395034372,1764354648820,-756.59,0.00016712,2]
[395034373,1764354648832,-500.0,0.00016712,2]
[395034374,1764354648841,-467.2732596,0.00016712,2]
[395034375,1764354648852,-665.4,0.00016712,2]
[395034376,1764354648860,-174.06232617,0.00016712,2]
[395034377,1764354648870,-3333.08,0.00016712,2]
[395034378,1764354648879,-500.0,0.00016712,2]
[395034379,1764354648889,-1501.73,0.00016712,2]
[395034380,1764354648898,-1063.31,0.00016712,2]
[395034381,1764354648908,-531.78758707,0.00016712,2]
[395034382,1764354648917,-800.66,0.00016712,2]
[395034383,1764354648930,-500.0,0.00016712,2]
[395034384,1764354648939,-500.0,0.00016712,2]
[395034385,1764354648948,-500.0,0.00016712,2]
[395034386,1764354648958,-500.0,0.00016712,2]
[395034387,1764354648968,-500.0,0.00016712,2]
[395034388,1764354648977,-2175.03,0.00016712,2]
[395034389,1764354648987,-5064.83,0.00016712,2]
[395034390,1764354648996,-4407.99,0.00016712,2]
[395034391,1764354649006,-1017.08,0.00016712,2]
[395034392,1764354649016,-1690.66,0.00016712,2]
[395034393,1764354649025,-1692.18,0.00016712,2]
[395034394,1764354649034,-665.96,0.00016712,2]
[395034395,1764354649043,-1150.87,0.00016712,2]
[395034396,1764354649052,-1222.4,0.00016712,2]
[395034397,1764354649061,-1419.73,0.00016712,2]
[395034398,1764354649071,-2721.83,0.00016712,2]
[395034399,1764354649080,-999.13,0.00016712,2]
[395034400,1764354649089,-500.0,0.00016712,2]
[395034401,1764354649098,-500.0,0.00016712,2]
[395034402,1764354649109,-500.0,0.00016712,2]
[395034403,1764354649121,-906.81,0.00016712,2]
[395034404,1764354649130,-500.0,0.00016712,2]
[395034405,1764354649139,-1130.97,0.00016712,2]
[395034406,1764354649150,-2316.38,0.00016712,2]
[395034407,1764354649159,-500.0,0.00016712,2]
[395034408,1764354649169,-2260.69,0.00016712,2]
[395034409,1764354649178,-500.0,0.00016712,2]
[395034410,1764354649189,-500.0,0.00016712,2]
[395034411,1764354649198,-673.59,0.00016712,2]
[395034412,1764354649208,-1219.88,0.00016712,2]
[395034413,1764354649217,-3447.77,0.00016712,2]
[395034414,1764354649227,-1500.62,0.00016712,2]
[395034415,1764354649236,-515.63,0.00016712,2]
[395034416,1764354649245,-770.19,0.00016712,2]
[395034417,1764354649254,-1807.37,0.00016712,2]
[395034418,1764354649263,-560.70124,0.00016712,2]
[395034419,1764354649272,-1264.89,0.00016712,2]
[395034420,1764354649281,-617.7,0.00016712,2]
[395034421,1764354649290,-500.0,0.00016712,2]
[395034422,1764354649299,-671.26,0.00016712,2]
[395034423,1764354649308,-4566.24,0.00016712,2]
[395034424,1764354649317,-185.80015129,0.00016712,2]
[395034425,1764354649326,-500.0,0.00016712,2]
[395034426,1764354649335,-500.0,0.00016712,2]
[395034427,1764354649344,-500.0,0.00016712,2]
[395034428,1764354649354,-3778.81,0.00016712,2]
[395034429,1764354649363,-500.0,0.00016712,2]
[395034430,1764354649371,-694.07,0.00016712,2]
[395034431,1764354649381,-500.0,0.00016712,2]
[395034432,1764354649390,-11825.99,0.00016712,2]
[395034433,1764354649400,-500.0,0.00016712,2]
[395034434,1764354649409,-1036.8,0.00016712,2]
[395034435,1764354649418,-990.25,0.00016712,2]
[395034436,1764354649427,-500.0,0.00016712,2]
[395034437,1764354649436,-1300.64,0.00016712,2]
[395034438,1764354649445,-500.0,0.00016712,2]
[395034439,1764354649454,-500.0,0.00016712,2]
[395034440,1764354649463,-3798.04,0.00016712,2]
[395034441,1764354649478,-3616.9,0.00016712,2]
[395034442,1764354649489,-500.0,0.00016712,2]
[395034443,1764354649499,-500.0,0.00016712,2]
[395034444,1764354649509,-500.0,0.00016712,2]
[395034445,1764354649518,-529.58,0.00016712,2]
[395034446,1764354649528,-780.9,0.00016712,2]
[395034447,1764354649537,-10173.58,0.00016712,2]
[395034448,1764354649546,-500.0,0.00016712,2]
[395034449,1764354649556,-548.93,0.00016712,2]
[395034450,1764354649565,-500.0,0.00016712,2]
[395034451,1764354649575,-500.0,0.00016712,2]
[395034452,1764354649585,-350.18540852,0.00016712,2]
[395034453,1764354649594,-500.0,0.00016712,2]
[395034454,1764354649605,-500.0,0.00016712,2]
[395034455,1764354649614,-3025.75,0.00016712,2]
[395034456,1764354649624,-500.0,0.00016712,2]
[395034457,1764354649633,-1075.31,0.00016712,2]
[395034458,1764354649642,-1002.21,0.00016712,2]
[395034459,1764354649652,-881.99,0.00016712,2]
[395034460,1764354649662,-1259.87,0.00016712,2]
[395034461,1764354649671,-500.0,0.00016712,2]
[395034462,1764354649680,-582.83,0.00016712,2]
[395034463,1764354649689,-1550.28,0.00016712,2]
[395034464,1764354649699,-500.0,0.00016712,2]
[395034465,1764354649709,-697.56,0.00016712,2]
[395034466,1764354649718,-769.99,0.00016712,2]
[395034467,1764354649728,-151.0,0.00016712,2]
[395034468,1764354649737,-1446.48,0.00016712,2]
[395034469,1764354649746,-500.0,0.00016712,2]
[395034470,1764354649756,-1906.17,0.00016712,2]
[395034471,1764354649765,-500.0,0.00016712,2]
[395034472,1764354649775,-500.0,0.00016712,2]
[395034473,1764354649784,-151.0,0.00016712,2]
[395034474,1764354649793,-224.34885597,0.00016712,2]
[395034475,1764354649802,-1386.62,0.00016712,2]
[395034476,1764354649812,-500.0,0.00016712,2]
[395034477,1764354649821,-500.0,0.00016712,2]
[395034478,1764354649830,-500.0,0.00016712,2]
[395034479,1764354649839,-500.0,0.00016712,2]
[395034480,1764354649848,-2738.63,0.00016712,2]
[395034481,1764354649859,-500.0,0.00016712,2]
[395034482,1764354649869,-2528.32,0.00016712,2]
[395034483,1764354649878,-500.0,0.00016712,2]
[395034484,1764354649889,-500.0,0.00016712,2]
[395034485,1764354649899,-3058.46,0.00016712,2]
[395034486,1764354649908,-2310.71,0.00016712,2]
[395034487,1764354649916,-822.91,0.00016712,2]
[395034488,1764354649928,-500.0,0.00016712,2]
[395034489,1764354649937,-1610.52,0.00016712,2]
[395034490,1764354649946,-567.83,0.00016712,2]
[395034491,1764354649955,-502.69696859,0.00016773,2]
[395034492,1764354649964,-500.0,0.00016773,2]
[395034493,1764354649973,-500.0,0.00016773,2]
[395034494,1764354649982,-429.67266456,0.00016773,2]
[395034495,1764354649991,-500.0,0.00016773,2]
[395034496,1764354650001,-500.0,0.00016773,2]
[395034497,1764354650010,-500.0,0.00016773,2]
[395034498,1764354650019,-500.0,0.00016773,2]
[395034499,1764354650029,-500.0,0.00016773,2]
[395034500,1764354650038,-500.0,0.00016773,2]
[395034501,1764354650047,-402.81205697,0.00016773,2]
[395034502,1764354650062,-500.0,0.00016773,2]
[395034503,1764354650071,-500.0,0.00016773,2]
[395034504,1764354650080,-500.0,0.00016773,2]
[395034505,1764354650090,-500.0,0.00016773,2]
[395034506,1764354650099,-500.0,0.00016773,2]
[395034507,1764354650113,-500.0,0.00016773,2]
[395034508,1764354650122,-214.72710891,0.00016773,2]
[395034509,1764354650132,-157.72458116,0.00016773,2]
[395034510,1764354650141,-500.0,0.00016773,2]
[395034511,1764354650153,-431.64098253,0.00016773,2]
[395034512,1764354650162,-158.2628039,0.00016773,2]
[395034513,1764354650172,-421.85456269,0.00016773,2]
[395034514,1764354650181,-500.0,0.00016773,2]
[395034515,1764354650192,-125.52463257,0.00016773,2]
[395034516,1764354650538,-374.47536743,0.00016773,2]
[395034517,1764354650549,-500.0,0.00016773,2]
[395034518,1764354650559,-159.59559052,0.00016773,2]
[395034519,1764354650570,-486.90650718,0.00016773,2]
[395034520,1764354650582,-500.0,0.00016773,2]
[395034521,1764354650593,-500.0,0.00016773,2]
[395034522,1764354650606,-500.0,0.00016773,2]
[395034523,1764354650617,-500.0,0.00016773,2]
[395034524,1764354650628,-500.0,0.00016773,2]
[395034525,1764354650640,-500.0,0.00016773,2]
[395034526,1764354650652,-500.0,0.00016773,2]
[395034527,1764354650662,-500.0,0.00016773,2]
[395034528,1764354650674,-200.97856109,0.00016773,2]
[395034529,1764354650686,-500.0,0.00016773,2]